fUST/lending_fUST_20250406
["ID","MTS","AMOUNT","RATE_DAILY","PERIOD"]
[357229538,1743923008312,2714.12,0.00045683,120]
[357229539,1743923008565,2714.12,0.00045683,120]
[357229540,1743923008832,2714.12,0.00045683,120]
[357229541,1743923009104,2714.12,0.0004561,120]
[357229542,1743923009699,2714.12,0.0004561,120]
[357229543,1743923009783,2714.12,0.0004561,120]
[357229544,1743923010063,2714.12,0.0004561,120]
[357229545,1743923010328,2714.12,0.0004561,120]
[357229546,1743923010585,2714.12,0.0004561,120]
[357229547,1743923010829,2714.12,0.0004561,120]
[357229548,1743923011087,2714.12,0.0004561,120]
[357229549,1743923011341,2714.12,0.0004561,120]
[357229550,1743923011605,2714.18122825,0.0004561,120]
[357229551,1743923021985,500.0,0.0004561,120]
[357229554,1743923103276,298.0,0.0004561,30]
[357229555,1743923111736,200.0,0.0004561,30]
[357229556,1743923112938,207.4,0.0004561,30]
[357229557,1743923113611,215.0738,0.0004561,30]
[357229558,1743923114336,223.0315306,0.0004561,30]
[357229559,1743923115034,231.28369723,0.0004561,30]
[357229560,1743923115720,239.84119403,0.0004561,30]
[357229561,1743923116427,248.71531821,0.0004561,30]
[357229562,1743923117075,257.91778498,0.0004561,30]
[357229563,1743923117748,267.46074303,0.0004561,30]
[357229564,1743923118418,277.35679052,0.0004561,30]
[357229565,1743923119085,287.61899177,0.0004561,30]
[357229566,1743923119727,298.26089446,0.0004561,30]
[357229567,1743923120481,309.29654756,0.0004561,30]
[357229568,1743923121144,320.74051982,0.0004561,30]
[357229569,1743923121923,332.60791905,0.0004561,30]
[357229570,1743923122656,344.91441206,0.0004561,30]
[357229571,1743923123334,357.6762453,0.0004561,30]
[357229572,1743923124004,370.91026638,0.0004561,30]
[357229573,1743923124654,384.63394623,0.0004561,30]
[357229574,1743923125278,384.63394623,0.0004561,30]
[357229577,1743923194042,186.874844,0.00013699,2]
[357229578,1743923245117,-326.4657098,0.00020215,2]
[357229579,1743923245148,-117.23377603,0.00020401,2]
[357229580,1743923331751,330673.03168314,0.0004561,30]
[357229584,1743923373128,-2100.0737435,0.00019731,2]
[357229585,1743923373150,-529.002145,0.00019827,2]
[357229586,1743923373171,-231.0964365,0.00019972,2]
[357229587,1743923373194,-300.0,0.00020401,2]
[357229588,1743923373216,-24900.0,0.00020402,2]
[357229589,1743923373238,-250.0,0.00020402,2]
[357229590,1743923373259,-175.84181856,0.00020601,2]
[357229591,1743923373281,-1790.8733685,0.0002061,2]
[357229592,1743923373303,-134.44961617,0.000207,2]
[357229593,1743923373325,-500.0,0.000207,2]
[357229594,1743923373347,-305.25982383,0.000207,2]
[357229595,1743923373368,-249.07447981,0.00020873,2]
[357229596,1743923373392,-830.01,0.00020962,3]
[357229597,1743923373414,-498.46201857,0.00020971,2]
[357229598,1743923373437,-500.0,0.00020971,2]
[357229599,1743923373460,-500.0,0.00020971,2]
[357229600,1743923373485,-500.0,0.00020971,2]
[357229601,1743923373507,-500.0,0.00020971,2]
[357229602,1743923373530,-500.0,0.00020971,2]
[357229603,1743923373553,-500.0,0.00020971,2]
[357229604,1743923373577,-500.0,0.00020971,2]
[357229605,1743923373598,-538.01851225,0.00020971,2]
[357229606,1743923373622,-500.0,0.00020971,2]
[357229607,1743923373643,-500.0,0.00020971,2]
[357229608,1743923373667,-500.0,0.00020971,2]
[357229609,1743923373689,-500.0,0.00020971,2]
[357229610,1743923373712,-500.0,0.00020971,2]
[357229611,1743923373735,-500.0,0.00020971,2]
[357229612,1743923373762,-500.0,0.00020971,2]
[357229613,1743923373786,-500.0,0.00020971,2]
[357229614,1743923373809,-500.0,0.00020971,2]
[357229615,1743923373833,-500.0,0.00020971,2]
[357229616,1743923373858,-500.0,0.00020971,2]
[357229617,1743923373880,-500.0,0.00020971,2]
[357229618,1743923373902,-500.0,0.00020971,2]
[357229619,1743923373923,-500.0,0.00020971,2]
[357229620,1743923373944,-600.78144818,0.00020971,2]
[357229621,1743923373966,-500.0,0.00020971,2]
[357229622,1743923373990,-500.0,0.00020971,2]
[357229623,1743923374012,-273.19254792,0.00020971,2]
[357229624,1743923374033,-500.0,0.00020971,2]
[357229625,1743923374056,-500.0,0.00020971,2]
[357229626,1743923374078,-500.0,0.00020971,2]
[357229627,1743923374102,-500.0,0.00020971,2]
[357229628,1743923374123,-292.24887899,0.00020971,2]
[357229629,1743923374145,-500.0,0.00020971,2]
[357229630,1743923374168,-500.0,0.00020971,2]
[357229631,1743923374190,-500.0,0.00020971,2]
[357229632,1743923374213,-500.0,0.00020971,2]
[357229633,1743923374235,-500.0,0.00020971,2]
[357229634,1743923374258,-500.0,0.00020971,2]
[357229635,1743923374280,-500.0,0.00020971,2]
[357229636,1743923374301,-500.0,0.00020971,2]
[357229637,1743923374321,-182.42981706,0.00020972,2]
[357229638,1743923374342,-50000.0,0.00020972,2]
[357229639,1743923374361,-295.38979005,0.00020973,2]
[357229640,1743923374381,-152.33,0.00021,2]
[357229641,1743923374400,-186.5899066,0.00021073,2]
[357229642,1743923374420,-249.07447981,0.00021295,2]
[357229643,1743923374440,-291.43462695,0.000215,2]
[357229644,1743923374459,-808.27984228,0.00021591,2]
[357229645,1743923374479,-211.93067977,0.00021599,2]
[357229646,1743923374499,-500.0,0.00021673,2]
[357229647,1743923374518,-500.0,0.00021673,2]
[357229648,1743923374538,-500.0,0.00021673,2]
[357229649,1743923374558,-500.0,0.00021673,2]
[357229650,1743923374578,-500.0,0.00021673,2]
[357229651,1743923374598,-500.0,0.00021673,2]
[357229652,1743923374617,-500.0,0.00021673,2]
[357229653,1743923374638,-372.90429364,0.00021673,2]
[357229657,1743923400441,300.40074583,0.00023,10]
[357229686,1743923432341,-221.6213749,0.00020697,2]
[357229687,1743923432351,-2747.48843588,0.00021617,2]
[357229688,1743923432362,-300.0,0.00021672,2]
[357229689,1743923432371,-248.47634359,0.00021687,2]
[357229690,1743923432380,-151.0,0.00021687,2]
[357229691,1743923432389,-151.0,0.00021687,2]
[357229692,1743923432398,-151.0,0.00021687,2]
[357229693,1743923432407,-151.0,0.00021687,2]
[357229694,1743923432416,-152.62776324,0.00021687,2]
[357229695,1743923432425,-200.0,0.00021687,2]
[357229696,1743923432434,-363.76,0.0002169,3]
[357229697,1743923432443,-41425.95858366,0.00021699,2]
[357229698,1743923432454,-8574.04141634,0.00021699,2]
[357229699,1743923432463,-500.0,0.00021699,2]
[357229700,1743923432473,-184.80941504,0.00021699,2]
[357229701,1743923432482,-278.54362691,0.00021699,2]
[357229702,1743923432491,-331.80727197,0.00021699,2]
[357229703,1743923432501,-251.4107926,0.00021699,2]
[357229704,1743923432511,-213.24363193,0.00021699,2]
[357229705,1743923432520,-186.94799468,0.00021699,2]
[357229706,1743923432529,-97049.26150051,0.000217,2]
[357229724,1743923438216,-344.53127202,0.00021699,2]
[357229726,1743923438225,-500.0,0.00021699,2]
[357229728,1743923438235,-500.0,0.00021699,2]
[357229730,1743923438244,-308.13250533,0.00021699,2]
[357229732,1743923438255,-365.805431,0.00021699,2]
[357229734,1743923438264,-4590.27899505,0.000217,2]
[357229736,1743923438276,-83059.11493222,0.000217,2]
[357229738,1743923438288,-151163.0892271,0.000217,2]
[357229740,1743923438298,-249.07447981,0.00021717,2]
[357229743,1743923438308,-182.42981706,0.00021817,2]
[357229745,1743923438317,-4382.39889833,0.000219,3]
[357229747,1743923438327,-505.5772869,0.00021917,2]
[357229749,1743923438337,-502.72240067,0.00021917,2]
[357229751,1743923438346,-558.74167823,0.00021917,2]
[357229753,1743923438356,-501.64316353,0.00021917,2]
[357229755,1743923438365,-505.88102214,0.00021917,2]
[357229767,1743923438474,-213.47498538,0.00021917,2]
[357229770,1743923438491,-500.0,0.00021917,2]
[357229772,1743923438501,-508.08548406,0.00021917,2]
[357229774,1743923438510,-513.45240241,0.00021917,2]
[357229776,1743923438519,-645.25511935,0.00021917,2]
[357229778,1743923438529,-500.0,0.00021917,2]
[357229780,1743923438539,-500.0,0.00021917,2]
[357229782,1743923438549,-507.61398855,0.00021917,2]
[357229784,1743923438559,-505.82129604,0.00021917,2]
[357229786,1743923438568,-505.88180676,0.00021917,2]
[357229788,1743923438578,-506.804823,0.00021917,2]
[357229790,1743923438587,-500.0,0.00021917,2]
[357229792,1743923438596,-500.0,0.00021917,2]
[357229794,1743923438606,-500.0,0.00021917,2]
[357229796,1743923438615,-500.0,0.00021917,2]
[357229798,1743923438625,-500.0,0.00021917,2]
[357229800,1743923438635,-500.0,0.00021917,2]
[357229802,1743923438644,-265.38882759,0.00021917,2]
[357229804,1743923438654,-500.0,0.00021917,2]
[357229806,1743923438664,-500.0,0.00021917,2]
[357229808,1743923438674,-500.0,0.00021917,2]
[357229810,1743923438683,-500.0,0.00021917,2]
[357229812,1743923438692,-500.0,0.00021917,2]
[357229814,1743923438702,-528.39,0.00021917,2]
[357229816,1743923438711,-500.0,0.00021917,2]
[357229818,1743923438720,-500.0,0.00021917,2]
[357229820,1743923438730,-350.80202729,0.00021917,2]
[357229822,1743923438740,-500.0,0.00021917,2]
[357229824,1743923438749,-500.0,0.00021917,2]
[357229826,1743923438758,-500.0,0.00021917,2]
[357229828,1743923438769,-504.47148551,0.00021917,2]
[357229830,1743923438781,-500.0,0.00021917,2]
[357229832,1743923438791,-500.0,0.00021917,2]
[357229834,1743923438800,-500.0,0.00021917,2]
[357229836,1743923438813,-500.0,0.00021917,2]
[357229839,1743923438822,-500.0,0.00021917,2]
[357229841,1743923438831,-508.84346544,0.00021917,2]
[357229843,1743923438841,-500.0,0.00021917,2]
[357229844,1743923438852,-596.39938883,0.00021917,2]
[357229846,1743923438861,-500.0,0.00021917,2]
[357229849,1743923438872,-506.80774565,0.00021917,2]
[357229851,1743923438881,-500.0,0.00021917,2]
[357229853,1743923438890,-599.72567381,0.00021917,2]
[357229854,1743923438899,-500.0,0.00021917,2]
[357229856,1743923438909,-501.9742945,0.00021917,2]
[357229858,1743923438918,-525.67421831,0.00021917,2]
[357229860,1743923438927,-502.49742003,0.00021917,2]
[357229863,1743923438937,-500.0,0.00021917,2]
[357229865,1743923438946,-500.0,0.00021917,2]
[357229867,1743923438956,-200.0,0.00021917,2]
[357229868,1743923438965,-500.0,0.00021917,2]
[357229870,1743923438975,-518.29193319,0.00021917,2]
[357229872,1743923438984,-500.0,0.00021917,2]
[357229875,1743923438994,-501.84,0.00021917,2]
[357229877,1743923439003,-502.80900431,0.00021917,2]
[357229878,1743923439012,-500.0,0.00021917,2]
[357229880,1743923439022,-500.0,0.00021917,2]
[357229882,1743923439032,-575.50477616,0.00021917,2]
[357229884,1743923439042,-500.0,0.00021917,2]
[357229886,1743923439051,-500.0,0.00021917,2]
[357229888,1743923439060,-500.0,0.00021917,2]
[357229890,1743923439070,-500.0,0.00021917,2]
[357229892,1743923439079,-508.81205845,0.00021917,2]
[357229894,1743923439088,-368.73318357,0.00021917,2]
[357229896,1743923439098,-500.0,0.00021917,2]
[357229898,1743923439107,-500.0,0.00021917,2]
[357229900,1743923439117,-586.41517312,0.00021917,2]
[357229902,1743923439126,-348.61316512,0.00021917,2]
[357229904,1743923439136,-346.69321002,0.00021917,2]
[357229906,1743923439146,-500.0,0.00021917,2]
[357229908,1743923439156,-500.0,0.00021917,2]
[357229910,1743923439166,-500.0,0.00021917,2]
[357229912,1743923439176,-500.0,0.00021917,2]
[357229914,1743923439185,-500.0,0.00021917,2]
[357229916,1743923439195,-500.0,0.00021917,2]
[357229918,1743923439205,-500.0,0.00021917,2]
[357229920,1743923439215,-536.19690787,0.00021917,2]
[357229922,1743923439225,-500.0,0.00021917,2]
[357229924,1743923439235,-500.0,0.00021917,2]
[357229926,1743923439245,-500.0,0.00021917,2]
[357229928,1743923439254,-500.0,0.00021917,2]
[357229930,1743923439264,-500.0,0.00021917,2]
[357229932,1743923439273,-397.26399938,0.00021917,2]
[357229934,1743923439282,-505.12,0.00021917,2]
[357229936,1743923439292,-500.0,0.00021917,2]
[357229938,1743923439302,-502.38030767,0.00021917,2]
[357229940,1743923439312,-500.0,0.00021917,2]
[357229942,1743923439321,-500.0,0.00021917,2]
[357229944,1743923439332,-500.0,0.00021917,2]
[357229946,1743923439341,-500.0,0.00021917,2]
[357229948,1743923439351,-560.35,0.00021917,2]
[357229950,1743923439360,-500.0,0.00021917,2]
[357229952,1743923439371,-500.0,0.00021917,2]
[357229955,1743923439380,-500.0,0.00021917,2]
[357229956,1743923439390,-500.0,0.00021917,2]
[357229958,1743923439399,-500.0,0.00021917,2]
[357229961,1743923439409,-500.0,0.00021917,2]
[357229962,1743923439419,-479.19977162,0.00021917,2]
[357229976,1743923439540,-20.80022838,0.00021917,2]
[357229978,1743923439550,-500.0,0.00021917,2]
[357229980,1743923439560,-500.0,0.00021917,2]
[357229982,1743923439570,-81.47103437,0.00021917,2]
[357229984,1743923439582,-534.18896563,0.00021917,2]
[357229986,1743923439591,-500.0,0.00021917,2]
[357229988,1743923439600,-500.0,0.00021917,2]
[357229990,1743923439610,-500.0,0.00021917,2]
[357229992,1743923439619,-500.0,0.00021917,2]
[357229994,1743923439629,-500.0,0.00021917,2]
[357229996,1743923439638,-500.0,0.00021917,2]
[357229998,1743923439648,-500.0,0.00021917,2]
[357230000,1743923439658,-500.0,0.00021917,2]
[357230002,1743923439670,-500.0,0.00021917,2]
[357230005,1743923439684,-500.0,0.00021917,2]
[357230007,1743923439697,-500.0,0.00021917,2]
[357230009,1743923439709,-500.0,0.00021917,2]
[357230012,1743923439721,-500.0,0.00021917,2]
[357230014,1743923439734,-725.61,0.00021917,2]
[357230016,1743923439747,-500.0,0.00021917,2]
[357230018,1743923439757,-500.0,0.00021917,2]
[357230021,1743923439768,-500.0,0.00021917,2]
[357230023,1743923439784,-500.0,0.00021917,2]
[357230026,1743923439804,-500.0,0.00021917,2]
[357230029,1743923439821,-500.0,0.00021917,2]
[357230031,1743923439834,-1127.28,0.00021917,2]
[357230034,1743923439847,-500.0,0.00021917,2]
[357230036,1743923439860,-500.0,0.00021917,2]
[357230038,1743923439872,-500.0,0.00021917,2]
[357230041,1743923439886,-500.0,0.00021917,2]
[357230043,1743923439898,-500.0,0.00021917,2]
[357230045,1743923439912,-500.0,0.00021917,2]
[357230048,1743923439924,-500.0,0.00021917,2]
[357230050,1743923439937,-500.0,0.00021917,2]
[357230053,1743923439951,-500.0,0.00021917,2]
[357230055,1743923439963,-500.0,0.00021917,2]
[357230057,1743923439975,-500.0,0.00021917,2]
[357230059,1743923439986,-500.0,0.00021917,2]
[357230062,1743923439998,-500.0,0.00021917,2]
[357230064,1743923440013,-527.2526431,0.00021917,2]
[357230067,1743923440026,-500.0,0.00021917,2]
[357230069,1743923440038,-500.0,0.00021917,2]
[357230071,1743923440051,-500.0,0.00021917,2]
[357230074,1743923440065,-500.0,0.00021917,2]
[357230076,1743923440078,-500.0,0.00021917,2]
[357230078,1743923440090,-500.0,0.00021917,2]
[357230081,1743923440102,-500.0,0.00021917,2]
[357230083,1743923440113,-500.0,0.00021917,2]
[357230085,1743923440123,-500.0,0.00021917,2]
[357230087,1743923440134,-500.0,0.00021917,2]
[357230089,1743923440144,-500.0,0.00021917,2]
[357230091,1743923440155,-500.0,0.00021917,2]
[357230093,1743923440167,-500.0,0.00021917,2]
[357230096,1743923440177,-500.0,0.00021917,2]
[357230098,1743923440188,-500.0,0.00021917,2]
[357230100,1743923440199,-500.0,0.00021917,2]
[357230102,1743923440211,-500.0,0.00021917,2]
[357230104,1743923440222,-500.0,0.00021917,2]
[357230107,1743923440234,-602.88000001,0.00021917,2]
[357230109,1743923440246,-211.65366974,0.00021917,2]
[357230112,1743923440267,-397.54202549,0.00021917,2]
[357230115,1743923440280,-500.0,0.00021917,2]
[357230117,1743923440292,-500.0,0.00021917,2]
[357230119,1743923440304,-500.0,0.00021917,2]
[357230121,1743923440315,-500.0,0.00021917,2]
[357230124,1743923440328,-500.0,0.00021917,2]
[357230126,1743923440340,-500.0,0.00021917,2]
[357230128,1743923440351,-243.25305178,0.00021917,2]
[357230130,1743923440365,-256.74694822,0.00021917,2]
[357230132,1743923440375,-500.0,0.00021917,2]
[357230135,1743923440389,-51.67013897,0.00021917,2]
[357230137,1743923440403,-448.32986103,0.00021917,2]
[357230140,1743923440413,-500.0,0.00021917,2]
[357230142,1743923440425,-2906.96732842,0.00021917,2]
[357230145,1743923440441,-3345.74423928,0.00021917,2]
[357230168,1743923440657,-2068.7984323,0.00021917,2]
[357230170,1743923440669,-505.30781953,0.00021917,2]
[357230172,1743923440680,-500.0,0.00021917,2]
[357230175,1743923440691,-585.51,0.00021917,2]
[357230177,1743923440702,-500.0,0.00021917,2]
[357230179,1743923440713,-500.0,0.00021917,2]
[357230181,1743923440723,-824.26,0.00021917,2]
[357230183,1743923440734,-500.0,0.00021917,2]
[357230185,1743923440744,-1331.05,0.00021917,2]
[357230187,1743923440755,-273.8,0.00021917,2]
[357230190,1743923440765,-500.0,0.00021917,2]
[357230192,1743923440780,-500.0,0.00021917,2]
[357230194,1743923440790,-1988.82,0.00021917,2]
[357230196,1743923440801,-500.0,0.00021917,2]
[357230198,1743923440812,-466.10142987,0.00021917,2]
[357230200,1743923440823,-500.0,0.00021917,2]
[357230202,1743923440836,-500.0,0.00021917,2]
[357230205,1743923440847,-500.0,0.00021917,2]
[357230207,1743923440858,-500.0,0.00021917,2]
[357230209,1743923440869,-500.0,0.00021917,2]
[357230211,1743923440879,-500.0,0.00021917,2]
[357230213,1743923440891,-579.9,0.00021917,2]
[357230215,1743923440902,-500.0,0.00021917,2]
[357230216,1743923440912,-564.5,0.00021917,2]
[357230219,1743923440923,-500.0,0.00021917,2]
[357230220,1743923440934,-500.0,0.00021917,2]
[357230221,1743923440944,-3032.06,0.00021917,2]
[357230222,1743923440955,-500.0,0.00021917,2]
[357230223,1743923440966,-500.0,0.00021917,2]
[357230224,1743923440976,-500.0,0.00021917,2]
[357230225,1743923440987,-500.0,0.00021917,2]
[357230226,1743923440997,-500.0,0.00021917,2]
[357230227,1743923441008,-500.0,0.00021917,2]
[357230228,1743923441019,-500.0,0.00021917,2]
[357230229,1743923441031,-500.0,0.00021917,2]
[357230230,1743923441042,-500.0,0.00021917,2]
[357230231,1743923441054,-167.26495432,0.00021917,2]
[357230232,1743923441064,-500.0,0.00021917,2]
[357230239,1743923441184,-499.13103615,0.00021917,2]
[357230242,1743923441203,-500.0,0.00021917,2]
[357230244,1743923441213,-500.0,0.00021917,2]
[357230246,1743923441222,-500.0,0.00021917,2]
[357230248,1743923441231,-500.0,0.00021917,2]
[357230250,1743923441241,-740.5,0.00021917,2]
[357230252,1743923441251,-504.73357791,0.00021917,2]
[357230254,1743923441260,-500.0,0.00021917,2]
[357230256,1743923441270,-500.0,0.00021917,2]
[357230258,1743923441279,-500.0,0.00021917,2]
[357230260,1743923441288,-331.95,0.00021917,2]
[357230262,1743923441298,-500.0,0.00021917,2]
[357230264,1743923441308,-500.0,0.00021917,2]
[357230266,1743923441320,-369.90154394,0.00021917,2]
[357230268,1743923441343,-500.0,0.00021917,2]
[357230270,1743923441369,-500.0,0.00021917,2]
[357230272,1743923441394,-4354.57,0.00021917,2]
[357230274,1743923441418,-500.0,0.00021917,2]
[357230276,1743923441441,-500.0,0.00021917,2]
[357230278,1743923441463,-500.0,0.00021973,2]
[357230280,1743923441487,-5140.0,0.00022,2]
[357230282,1743923441510,-500.0,0.00022173,2]
[357230284,1743923441531,-500.0,0.00022173,2]
[357230286,1743923441554,-500.0,0.00022173,2]
[357230288,1743923441587,-500.0,0.00022173,2]
[357230290,1743923441609,-500.0,0.00022173,2]
[357230292,1743923441619,-500.0,0.00022173,2]
[357230294,1743923441628,-500.0,0.00022173,2]
[357230296,1743923441637,-500.0,0.00022173,2]
[357230298,1743923441647,-500.0,0.00022173,2]
[357230300,1743923441656,-500.0,0.00022173,2]
[357230302,1743923441665,-194.52230723,0.00022173,2]
[357230304,1743923441674,-500.0,0.00022173,2]
[357230306,1743923441683,-500.0,0.00022173,2]
[357230308,1743923441693,-500.0,0.00022173,2]
[357230310,1743923441703,-505.47005148,0.00022191,2]
[357230312,1743923441712,-506.10245172,0.00022191,2]
[357230314,1743923441722,-500.0,0.00022191,2]
[357230316,1743923441732,-512.06006469,0.00022191,2]
[357230318,1743923441741,-500.0,0.00022191,2]
[357230320,1743923441751,-500.0,0.00022191,2]
[357230322,1743923441760,-500.0,0.00022191,2]
[357230324,1743923441774,-500.0,0.00022191,2]
[357230326,1743923441784,-500.0,0.00022191,2]
[357230328,1743923441794,-500.0,0.00022191,2]
[357230330,1743923441803,-184.95848915,0.00022191,2]
[357230332,1743923441812,-500.0,0.00022191,2]
[357230334,1743923441822,-515.9139936,0.00022191,2]
[357230335,1743923441832,-500.0,0.00022191,2]
[357230336,1743923441841,-500.0,0.00022191,2]
[357230337,1743923441851,-500.0,0.00022191,2]
[357230338,1743923441870,-500.0,0.00022191,2]
[357230339,1743923441883,-500.0,0.00022191,2]
[357230340,1743923441894,-607.64087509,0.00022191,2]
[357230341,1743923441905,-200.0,0.00022191,2]
[357230342,1743923441915,-500.0,0.00022191,2]
[357230343,1743923441936,-500.0,0.00022191,2]
[357230344,1743923441958,-515.10324607,0.00022191,2]
[357230345,1743923441980,-500.0,0.00022191,2]
[357230346,1743923442004,-500.0,0.00022191,2]
[357230347,1743923442029,-500.0,0.00022191,2]
[357230348,1743923442051,-512.83967617,0.00022191,2]
[357230349,1743923442073,-500.0,0.00022191,2]
[357230350,1743923442094,-500.0,0.00022191,2]
[357230351,1743923442116,-500.0,0.00022191,2]
[357230352,1743923442138,-638.18,0.00022191,2]
[357230353,1743923442160,-500.0,0.00022191,2]
[357230354,1743923442183,-206.4103442,0.00022191,2]
[357230355,1743923442203,-500.0,0.00022191,2]
[357230356,1743923442225,-514.58454822,0.00022191,2]
[357230357,1743923442245,-500.0,0.00022191,2]
[357230358,1743923442255,-500.0,0.00022191,2]
[357230359,1743923442265,-500.0,0.00022191,2]
[357230360,1743923442275,-536.33742275,0.00022191,2]
[357230361,1743923442285,-500.0,0.00022191,2]
[357230362,1743923442295,-500.0,0.00022191,2]
[357230363,1743923442306,-500.0,0.00022191,2]
[357230364,1743923442315,-725.61,0.00022191,2]
[357230365,1743923442325,-616.9,0.00022191,2]
[357230366,1743923442335,-500.0,0.00022191,2]
[357230367,1743923442345,-500.0,0.00022191,2]
[357230368,1743923442356,-1127.28,0.00022191,2]
[357230369,1743923442366,-500.0,0.00022191,2]
[357230370,1743923442376,-500.0,0.00022191,2]
[357230371,1743923442387,-500.0,0.00022191,2]
[357230372,1743923442396,-500.0,0.00022191,2]
[357230373,1743923442407,-500.0,0.00022191,2]
[357230374,1743923442416,-500.0,0.00022191,2]
[357230375,1743923442426,-500.0,0.00022191,2]
[357230376,1743923442436,-500.0,0.00022191,2]
[357230377,1743923442447,-500.0,0.00022191,2]
[357230378,1743923442457,-500.0,0.00022191,2]
[357230379,1743923442467,-321.92,0.00022191,2]
[357230381,1743923442476,-500.0,0.00022191,2]
[357230383,1743923442486,-500.0,0.00022191,2]
[357230384,1743923442495,-500.0,0.00022191,2]
[357230385,1743923442505,-500.0,0.00022191,2]
[357230386,1743923442515,-500.0,0.00022191,2]
[357230387,1743923442525,-500.0,0.00022191,2]
[357230388,1743923442535,-500.0,0.00022191,2]
[357230389,1743923442545,-500.0,0.00022191,2]
[357230391,1743923442555,-500.0,0.00022191,2]
[357230393,1743923442566,-193.01,0.00022191,2]
[357230395,1743923442576,-500.0,0.00022191,2]
[357230397,1743923442586,-500.0,0.00022191,2]
[357230399,1743923442596,-8321.51,0.00022191,2]
[357230400,1743923442605,-500.0,0.00022191,2]
[357230402,1743923442615,-585.51,0.00022191,2]
[357230404,1743923442625,-500.0,0.00022191,2]
[357230406,1743923442635,-824.26,0.00022191,2]
[357230407,1743923442645,-1331.05,0.00022191,2]
[357230408,1743923442654,-1988.82,0.00022191,2]
[357230409,1743923442664,-500.0,0.00022191,2]
[357230410,1743923442674,-500.0,0.00022191,2]
[357230411,1743923442684,-500.0,0.00022191,2]
[357230412,1743923442694,-500.0,0.00022191,2]
[357230413,1743923442703,-500.0,0.00022191,2]
[357230414,1743923442714,-579.9,0.00022191,2]
[357230415,1743923442723,-500.0,0.00022191,2]
[357230417,1743923442734,-500.0,0.00022191,2]
[357230420,1743923442744,-3032.06,0.00022191,2]
[357230422,1743923442754,-500.0,0.00022191,2]
[357230425,1743923442764,-500.0,0.00022191,2]
[357230426,1743923442777,-500.0,0.00022191,2]
[357230427,1743923442786,-500.0,0.00022191,2]
[357230428,1743923442795,-500.0,0.00022191,2]
[357230429,1743923442805,-471.64,0.00022191,2]
[357230430,1743923442815,-508.4487282,0.00022191,2]
[357230431,1743923442825,-230.34410102,0.00022191,2]
[357230432,1743923442903,-141.58589898,0.00022191,2]
[357230433,1743923442913,-132.9965903,0.00022191,2]
[357230455,1743923444100,-0.00432936,0.00022191,2]
[357230456,1743923444279,-500.0,0.00021917,2]
[357230457,1743923444290,-366.99908034,0.00022191,2]
[357230458,1743923444300,-437.27,0.00022191,2]
[357230459,1743923444311,-96.73091966,0.00022191,2]
[357232485,1743923800262,-167.6724238,0.00020468,2]
[357232486,1743923815934,-82.3275762,0.00020468,2]
[357232487,1743923815958,-2727.84792552,0.0002099,2]
[357232488,1743923859783,-300.0,0.00020989,2]
[357232489,1743923859806,-401.2317,0.0002099,2]
[357232493,1743924173750,-319.2608914,0.00019976,2]